[Event "6. Internationales Spandauer Weihnachtsopen 2023"]
[Site "Spandau, Germany"]
[Date "2023.12.30"]
[Round "7.4"]
[White "Lippert, Daniel"]
[Black "Tschernatsch, Johannes"]
[Result "1/2-1/2"]
[TimeControl "90 min+30 sec"]
[WhiteElo "2031"]
[BlackElo "2335"]

1. d4 {[%clk 01:30:51]} {[%emt 00:00:28]} Nf6 {[%clk 01:30:41]} {[%emt
00:00:07]} 2. c4 {[%clk 01:31:16]} {[%emt 00:00:08]} g6 {[%clk 01:30:29]}
{[%emt 00:00:45]} 3. Nc3 {[%clk 01:31:39]} d5 {[%clk 01:30:40]} {[%emt
00:00:52]} 4. Nf3 {[%clk 01:31:40]} Bg7 {[%clk 01:31:01]} {[%emt 00:00:09]} 5.
Qb3 {[%clk 01:31:52]} {[%emt 00:00:08]} dxc4 {[%clk 01:31:13]} {[%emt
00:00:28]} 6. Qxc4 {[%clk 01:32:16]} O-O {[%clk 01:31:36]} {[%emt 00:00:22]} 7.
e4 {[%clk 01:31:53]} {[%emt 00:00:35]} Nc6 {[%clk 01:32:00]} {[%emt 00:00:11]}
8. Be2 {[%clk 01:32:04]} {[%emt 00:00:17]} e5 {[%clk 01:32:19]} {[%emt
00:00:19]} 9. d5 {[%clk 01:32:29]} {[%emt 00:00:04]} Nd4 {[%clk 01:32:45]} 10.
Nxd4 {[%clk 01:32:53]} {[%emt 00:00:06]} exd4 {[%clk 01:33:12]} {[%emt
00:00:04]} 11. Qxd4 {[%clk 01:33:11]} {[%emt 00:00:05]} c6 {[%clk 01:33:39]}
{[%emt 00:00:17]} 12. Qc4 {[%clk 01:33:34]} b5 {[%clk 01:34:06]} {[%emt
00:00:09]} 13. Qxc6 {[%clk 01:33:54]} {[%emt 00:00:03]} Bd7 {[%clk 01:34:35]}
14. Qd6 {[%clk 01:34:08]} {[%emt 00:00:15]} Re8 {[%clk 01:35:00]} {[%emt
00:00:06]} 15. e5 {[%clk 01:34:32]} {[%emt 00:00:04]} b4 {[%clk 01:35:15]}
{[%emt 00:00:37]} 16. Qxb4 {[%clk 01:34:56]} Rxe5 {[%clk 01:35:41]} 17. O-O
{[%clk 01:35:14]} a5 {[%clk 01:35:50]} {[%emt 00:00:25]} 18. Qd4 {[%clk
01:35:28]} {[%emt 00:00:28]} Nxd5 {[%clk 01:36:10]} {[%emt 00:00:15]} 19. Bh6
{[%clk 01:35:26]} {[%emt 00:00:10]} Nxc3 {[%clk 01:36:25]} {[%emt 00:00:19]} 20.
bxc3 {[%clk 01:35:51]} {[%emt 00:00:07]} Bf6 {[%clk 01:36:33]} {[%emt
00:00:24]} 21. Be3 {[%clk 01:36:14]} {[%emt 00:00:09]} Re8 {[%clk 01:34:46]}
{[%emt 00:02:04]} 22. Qd2 {[%clk 01:35:10]} {[%emt 00:01:34]} Be6 {[%clk
01:31:42]} {[%emt 00:03:50]} 23. Bd4 {[%clk 01:22:29]} {[%emt 00:13:00]} Rb8
{[%clk 01:30:16]} {[%emt 00:01:55]} 24. Rab1 {[%clk 01:15:02]} {[%emt
00:07:57]} Bxd4 {[%clk 01:29:16]} {[%emt 00:01:36]} 25. cxd4 {[%clk 01:14:13]}
{[%emt 00:01:16]} Qd5 {[%clk 01:29:23]} {[%emt 00:00:23]} 26. a3 {[%clk
01:03:50]} {[%emt 00:10:52]} Qa2 {[%clk 01:11:39]} {[%emt 00:18:23]} 27. Qxa2
{[%clk 00:50:59]} {[%emt 00:13:10]} Bxa2 {[%clk 01:12:04]} {[%emt 00:00:13]} 28.
Rxb8 {[%clk 00:46:46]} {[%emt 00:04:44]} Rxb8 {[%clk 01:12:31]} 29. Rc1 {[%clk
00:40:58]} {[%emt 00:06:10]} Rb2 {[%clk 01:08:50]} {[%emt 00:04:33]} 30. Bf3
{[%clk 00:39:40]} {[%emt 00:01:59]} Bb3 {[%clk 01:08:22]} {[%emt 00:00:27]} 31.
h4 {[%clk 00:36:07]} {[%emt 00:04:03]} a4 {[%clk 01:01:23]} {[%emt 00:07:30]}
32. Bc6 {[%clk 00:23:57]} {[%emt 00:13:21]} Rd2 {[%clk 00:56:49]} {[%emt
00:04:49]} 33. d5 {[%clk 00:23:43]} {[%emt 00:00:22]} Kg7 {[%clk 00:54:06]}
{[%emt 00:03:33]} 34. Re1 {[%clk 00:18:30]} {[%emt 00:05:17]} Rd4 {[%clk
00:53:44]} {[%emt 00:00:53]} 35. g3 {[%clk 00:16:09]} {[%emt 00:03:05]} Kf6
{[%clk 00:50:11]} {[%emt 00:03:49]} 36. f3 {[%clk 00:10:43]} {[%emt 00:05:58]}
h6 {[%clk 00:37:07]} {[%emt 00:13:53]} 37. Kf2 {[%clk 00:10:03]} {[%emt
00:01:04]} g5 {[%clk 00:36:09]} {[%emt 00:01:12]} 38. hxg5+ {[%clk 00:07:08]}
{[%emt 00:03:55]} hxg5 {[%clk 00:36:36]} 39. Ke3 {[%clk 00:06:44]} {[%emt
00:00:25]} Ke5 {[%clk 00:34:13]} {[%emt 00:03:15]} 40. Kf2+ {[%clk 00:04:18]}
{[%emt 00:02:35]} Kd6 {[%clk 00:33:46]} {[%emt 00:00:58]} 41. Re4 {[%clk
00:03:11]} {[%emt 00:01:47]} Rd2+ {[%clk 00:34:13]} 42. Re2 {[%clk 00:03:36]}
Rd1 {[%clk 00:34:19]} {[%emt 00:00:21]} 43. Re1 {[%clk 00:03:52]} {[%emt
00:00:21]} Rd4 {[%clk 00:20:23]} {[%emt 00:14:58]} 44. Re4 {[%clk 00:04:18]}
Rd2+ {[%clk 00:18:27]} {[%emt 00:01:51]} 45. Re2 {[%clk 00:04:41]} {[%emt
00:00:16]} Rd1 {[%clk 00:18:41]} {[%emt 00:00:19]} 1/2-1/2

[Event "6. Internationales Spandauer Weihnachtsopen 2023"]
[Site "Spandau, Germany"]
[Date "2023.12.30"]
[Round "7.5"]
[White "Tiarks, Jann-Christian"]
[Black "Teichert, Felix"]
[Result "0-1"]
[TimeControl "90 min+30 sec"]
[WhiteElo "2224"]
[BlackElo "2066"]

1. e4 {[%clk 01:30:57]} {[%emt 00:00:05]} c6 {[%clk 01:30:51]} {[%emt
00:00:05]} 2. d4 {[%clk 01:31:08]} {[%emt 00:00:19]} d5 {[%clk 01:31:09]}
{[%emt 00:00:13]} 3. e5 {[%clk 01:31:31]} {[%emt 00:00:06]} Bf5 {[%clk
01:31:29]} {[%emt 00:00:10]} 4. h4 {[%clk 01:31:53]} {[%emt 00:00:08]} Qb6
{[%clk 01:31:43]} {[%emt 00:00:16]} 5. Nc3 {[%clk 01:31:50]} {[%emt 00:00:34]}
h5 {[%clk 01:31:56]} {[%emt 00:00:16]} 6. Nge2 {[%clk 01:31:15]} {[%emt
00:01:06]} e6 {[%clk 01:32:05]} {[%emt 00:00:21]} 7. Ng3 {[%clk 01:30:26]}
{[%emt 00:01:17]} Bg6 {[%clk 01:32:28]} {[%emt 00:00:13]} 8. Be2 {[%clk
01:30:18]} {[%emt 00:00:41]} c5 {[%clk 01:32:45]} {[%emt 00:00:05]} 9. dxc5
{[%clk 01:29:43]} {[%emt 00:01:05]} Bxc5 {[%clk 01:32:59]} {[%emt 00:00:16]} 10.
O-O {[%clk 01:30:02]} {[%emt 00:00:10]} Qc7 {[%clk 01:32:53]} {[%emt 00:00:43]}
11. Bf4 {[%clk 01:26:52]} {[%emt 00:03:35]} a6 {[%clk 01:33:10]} {[%emt
00:00:13]} 12. Bxh5 {[%clk 01:25:57]} {[%emt 00:01:24]} Bxh5 {[%clk 01:32:49]}
{[%emt 00:00:52]} 13. Nxh5 {[%clk 01:26:20]} {[%emt 00:00:09]} g6 {[%clk
01:30:17]} {[%emt 00:05:05]} 14. Ng3 {[%clk 01:25:30]} Rxh4 {[%clk 01:28:43]}
{[%emt 00:01:22]} 15. Bg5 {[%clk 01:25:38]} {[%emt 00:00:22]} Rh8 {[%clk
01:25:59]} {[%emt 00:03:23]} 16. Re1 {[%clk 01:19:46]} {[%emt 00:06:12]} Nc6
{[%clk 01:18:56]} {[%emt 00:07:41]} 17. Na4 {[%clk 01:12:54]} {[%emt 00:07:25]}
Bd4 {[%clk 01:15:26]} {[%emt 00:03:50]} 18. Qd2 {[%clk 01:03:13]} {[%emt
00:10:12]} Bxe5 {[%clk 00:54:12]} {[%emt 00:21:50]} 19. Rxe5 {[%clk 01:00:29]}
{[%emt 00:03:06]} Qxe5 {[%clk 00:42:54]} {[%emt 00:11:48]} 20. Re1 {[%clk
01:00:16]} {[%emt 00:00:49]} Qd4 {[%clk 00:42:11]} {[%emt 00:01:07]} 21. Qxd4
{[%clk 01:00:36]} {[%emt 00:00:14]} Nxd4 {[%clk 00:42:33]} {[%emt 00:00:07]} 22.
Nb6 {[%clk 01:01:03]} {[%emt 00:00:05]} Rd8 {[%clk 00:39:55]} {[%emt 00:03:05]}
23. Bxd8 {[%clk 00:59:22]} {[%emt 00:02:13]} Kxd8 {[%clk 00:40:20]} {[%emt
00:00:05]} 24. Rd1 {[%clk 00:59:37]} {[%emt 00:00:12]} Nf5 {[%clk 00:30:26]}
{[%emt 00:10:29]} 25. Nxf5 {[%clk 00:59:41]} {[%emt 00:00:20]} gxf5 {[%clk
00:30:52]} {[%emt 00:00:13]} 26. c4 {[%clk 01:00:07]} Kc7 {[%clk 00:31:11]}
{[%emt 00:00:12]} 27. Na8+ {[%clk 01:00:22]} {[%emt 00:00:14]} Kb8 {[%clk
00:27:20]} {[%emt 00:04:17]} 28. Nb6 {[%clk 01:00:36]} {[%emt 00:00:16]} Nf6
{[%clk 00:26:18]} {[%emt 00:01:46]} 29. cxd5 {[%clk 01:00:37]} {[%emt
00:00:16]} Kc7 {[%clk 00:26:05]} {[%emt 00:00:42]} 30. Nc4 {[%clk 00:59:52]}
{[%emt 00:01:18]} Nxd5 {[%clk 00:26:24]} {[%emt 00:00:42]} 31. Ne5 {[%clk
01:00:14]} Rh7 {[%clk 00:24:51]} {[%emt 00:01:37]} 32. Rc1+ {[%clk 01:00:29]}
{[%emt 00:00:15]} Kd8 {[%clk 00:24:58]} {[%emt 00:00:23]} 33. Nc4 {[%clk
00:59:48]} {[%emt 00:01:13]} f6 {[%clk 00:23:35]} {[%emt 00:01:57]} 34. Re1
{[%clk 00:59:59]} {[%emt 00:00:13]} Kd7 {[%clk 00:21:42]} {[%emt 00:02:23]} 35.
Ne3 {[%clk 01:00:15]} {[%emt 00:00:15]} Nxe3 {[%clk 00:19:15]} {[%emt
00:02:57]} 36. Rxe3 {[%clk 01:00:31]} {[%emt 00:00:14]} e5 {[%clk 00:18:13]}
{[%emt 00:01:43]} 37. Rd3+ {[%clk 00:59:26]} {[%emt 00:01:23]} Ke6 {[%clk
00:18:34]} {[%emt 00:00:10]} 38. Rd8 {[%clk 00:59:43]} {[%emt 00:00:16]} Rd7
{[%clk 00:18:24]} {[%emt 00:00:36]} 39. Rb8 {[%clk 01:00:07]} {[%emt 00:00:06]}
b5 {[%clk 00:17:56]} {[%emt 00:01:02]} 40. Ra8 {[%clk 00:59:39]} {[%emt
00:00:54]} Rd1+ {[%clk 00:18:01]} {[%emt 00:00:25]} 41. Kh2 {[%clk 01:00:02]}
{[%emt 00:00:07]} Rd6 {[%clk 00:17:18]} {[%emt 00:01:13]} 42. Kg1 {[%clk
01:00:05]} {[%emt 00:00:31]} e4 {[%clk 00:17:17]} {[%emt 00:00:31]} 43. Kf1
{[%clk 01:00:26]} {[%emt 00:00:05]} Rc6 {[%clk 00:17:25]} {[%emt 00:00:32]} 44.
g3 {[%clk 01:00:23]} {[%emt 00:00:28]} Ke5 {[%clk 00:15:49]} {[%emt 00:02:04]}
45. Re8+ {[%clk 00:57:17]} {[%emt 00:03:51]} Kd4 {[%clk 00:16:04]} 46. Rd8+
{[%clk 00:57:38]} {[%emt 00:00:07]} Kc5 {[%clk 00:15:36]} {[%emt 00:01:01]} 47.
Ke2 {[%clk 00:57:42]} {[%emt 00:00:22]} Rd6 {[%clk 00:14:04]} {[%emt 00:05:12]}
48. Rxd6 {[%clk 00:46:32]} {[%emt 00:08:32]} Kxd6 {[%clk 00:14:31]} {[%emt
00:00:04]} 49. Ke3 {[%clk 00:46:54]} {[%emt 00:00:05]} a5 {[%clk 00:08:26]}
{[%emt 00:06:39]} 50. Kf4 {[%clk 00:46:49]} {[%emt 00:01:51]} Ke6 {[%clk
00:08:36]} 51. f3 {[%clk 00:42:32]} {[%emt 00:03:59]} Kd5 {[%clk 00:09:01]} 52.
Ke3 {[%clk 00:41:53]} {[%emt 00:01:03]} Ke5 {[%clk 00:08:48]} {[%emt 00:00:42]}
53. b3 {[%clk 00:41:59]} {[%emt 00:00:27]} b4 {[%clk 00:07:50]} {[%emt
00:01:29]} 54. f4+ {[%clk 00:42:08]} {[%emt 00:00:21]} Kd5 {[%clk 00:08:11]}
{[%emt 00:00:07]} 55. Ke2 {[%clk 00:42:33]} {[%emt 00:00:19]} Kd4 {[%clk
00:08:19]} {[%emt 00:00:06]} 56. Kd2 {[%clk 00:42:57]} {[%emt 00:00:06]} e3+
{[%clk 00:08:35]} {[%emt 00:00:14]} 57. Ke1 {[%clk 00:43:16]} {[%emt 00:00:11]}
Kd3 {[%clk 00:08:31]} {[%emt 00:00:37]} 58. Kd1 {[%clk 00:43:40]} {[%emt
00:00:14]} e2+ {[%clk 00:08:02]} {[%emt 00:00:48]} 59. Ke1 {[%clk 00:44:05]}
{[%emt 00:00:05]} Ke3 {[%clk 00:08:22]} {[%emt 00:00:10]} 0-1

[Event "6. Internationales Spandauer Weihnachtsopen 2023"]
[Site "Spandau, Germany"]
[Date "2023.12.30"]
[Round "7.6"]
[White "Dathe, Frederick"]
[Black "Heinke, Jasper"]
[Result "1/2-1/2"]
[TimeControl "90 min+30 sec"]
[WhiteElo "2143"]
[BlackElo "2041"]

1. Nf3 {[%clk 01:30:35]} {[%emt 00:01:22]} Nf6 {[%clk 01:30:49]} {[%emt
00:04:31]} 2. c4 {[%clk 01:30:36]} e6 {[%clk 01:31:13]} 3. g3 {[%clk 01:30:19]}
d5 {[%clk 01:31:36]} 4. Bg2 {[%clk 01:30:29]} Be7 {[%clk 01:31:52]} {[%emt
00:00:26]} 5. O-O {[%clk 01:30:26]} O-O {[%clk 01:32:10]} 6. b3 {[%clk
01:30:30]} d4 {[%clk 01:32:25]} 7. e3 {[%clk 01:30:35]} c5 {[%clk 01:32:44]} 8.
exd4 {[%clk 01:29:45]} cxd4 {[%clk 01:33:07]} 9. Re1 {[%clk 01:28:26]} {[%emt
00:01:34]} Nc6 {[%clk 01:33:20]} {[%emt 00:00:26]} 10. d3 {[%clk 01:27:37]}
{[%emt 00:01:11]} Ne8 {[%clk 01:33:18]} {[%emt 00:00:42]} 11. Na3 {[%clk
01:24:11]} {[%emt 00:03:50]} f6 {[%clk 01:28:02]} {[%emt 00:05:43]} 12. Nc2
{[%clk 01:23:15]} {[%emt 00:01:29]} e5 {[%clk 01:28:05]} {[%emt 00:00:33]} 13.
Rb1 {[%clk 01:22:26]} {[%emt 00:01:14]} Nb4 {[%clk 01:17:42]} {[%emt 00:10:53]}
14. a3 {[%clk 01:14:34]} {[%emt 00:08:21]} Nxc2 {[%clk 01:17:18]} {[%emt
00:00:54]} 15. Qxc2 {[%clk 01:14:58]} {[%emt 00:00:06]} a5 {[%clk 01:17:26]}
{[%emt 00:00:22]} 16. b4 {[%clk 01:13:28]} {[%emt 00:01:59]} Nc7 {[%clk
01:07:56]} {[%emt 00:10:05]} 17. Qe2 {[%clk 01:02:01]} {[%emt 00:11:58]} axb4
{[%clk 00:39:15]} {[%emt 00:29:08]} 18. axb4 {[%clk 01:01:47]} {[%emt
00:00:40]} Ra4 {[%clk 00:39:22]} {[%emt 00:00:24]} 19. b5 {[%clk 00:58:39]}
{[%emt 00:03:37]} Ne6 {[%clk 00:34:49]} {[%emt 00:05:06]} 20. Nh4 {[%clk
00:54:35]} {[%emt 00:04:33]} Bb4 {[%clk 00:29:18]} {[%emt 00:05:59]} 21. Rxb4
{[%clk 00:53:42]} {[%emt 00:01:23]} Rxb4 {[%clk 00:29:42]} {[%emt 00:00:11]} 22.
Ba3 {[%clk 00:54:06]} {[%emt 00:00:09]} Ra4 {[%clk 00:29:45]} {[%emt 00:00:18]}
23. Bxf8 {[%clk 00:54:28]} {[%emt 00:00:14]} Qxf8 {[%clk 00:22:24]} {[%emt
00:07:45]} 24. Bd5 {[%clk 00:45:25]} {[%emt 00:09:37]} g5 {[%clk 00:17:33]}
{[%emt 00:05:17]} 25. Qg4 {[%clk 00:40:05]} {[%emt 00:05:50]} Kh8 {[%clk
00:17:20]} {[%emt 00:00:43]} 26. Bxe6 {[%clk 00:38:13]} {[%emt 00:02:28]} Bxe6
{[%clk 00:17:38]} {[%emt 00:00:05]} 27. Qxe6 {[%clk 00:38:37]} {[%emt
00:00:06]} gxh4 {[%clk 00:18:04]} {[%emt 00:00:06]} 28. Re4 {[%clk 00:38:07]}
{[%emt 00:00:58]} hxg3 {[%clk 00:16:30]} {[%emt 00:02:06]} 29. hxg3 {[%clk
00:38:29]} {[%emt 00:00:05]} Ra3 {[%clk 00:11:52]} {[%emt 00:05:10]} 30. Rh4
{[%clk 00:37:53]} {[%emt 00:01:04]} Rxd3 {[%clk 00:09:39]} {[%emt 00:02:45]} 31.
Qd7 {[%clk 00:37:48]} {[%emt 00:00:49]} Qg7 {[%clk 00:08:40]} {[%emt 00:01:27]}
32. Qd8+ {[%clk 00:33:18]} {[%emt 00:04:55]} Qg8 {[%clk 00:09:05]} 33. Qxf6+
{[%clk 00:33:43]} {[%emt 00:00:05]} Qg7 {[%clk 00:09:30]} {[%emt 00:00:04]} 34.
Qe6 {[%clk 00:30:17]} {[%emt 00:03:53]} Rxg3+ {[%clk 00:08:46]} {[%emt
00:01:13]} 35. Kf1 {[%clk 00:30:36]} {[%emt 00:00:11]} Rg5 {[%clk 00:04:18]}
{[%emt 00:04:58]} 36. c5 {[%clk 00:30:47]} {[%emt 00:00:20]} d3 {[%clk
00:03:31]} {[%emt 00:02:08]} 37. Qe8+ {[%clk 00:30:00]} {[%emt 00:00:24]} Qg8
{[%clk 00:03:55]} {[%emt 00:00:06]} 38. Qxg8+ {[%clk 00:30:26]} {[%emt
00:00:11]} Rxg8 {[%clk 00:04:19]} {[%emt 00:00:04]} 39. Ke1 {[%clk 00:29:30]}
{[%emt 00:01:22]} Rc8 {[%clk 00:03:59]} {[%emt 00:00:54]} 40. Rc4 {[%clk
00:29:32]} {[%emt 00:00:36]} Kg7 {[%clk 00:03:23]} {[%emt 00:00:54]} 41. Kd2
{[%clk 00:29:56]} {[%emt 00:00:07]} e4 {[%clk 00:03:20]} {[%emt 00:00:39]} 42.
Rxe4 {[%clk 00:28:01]} {[%emt 00:02:23]} Rxc5 {[%clk 00:03:16]} {[%emt
00:00:30]} 43. Re7+ {[%clk 00:28:26]} {[%emt 00:00:08]} Kg6 {[%clk 00:03:24]}
{[%emt 00:00:18]} 44. Rxb7 {[%clk 00:28:52]} {[%emt 00:00:11]} Rc2+ {[%clk
00:02:54]} {[%emt 00:00:54]} 45. Kxd3 {[%clk 00:29:17]} {[%emt 00:00:04]} Rxf2
{[%clk 00:03:20]} {[%emt 00:00:15]} 46. Rb8 {[%clk 00:28:13]} {[%emt 00:01:33]}
Rb2 {[%clk 00:03:06]} {[%emt 00:00:36]} 47. b6 {[%clk 00:28:28]} {[%emt
00:00:12]} h5 {[%clk 00:03:00]} {[%emt 00:00:49]} 48. Kc3 {[%clk 00:27:15]}
{[%emt 00:01:33]} Rb1 {[%clk 00:03:26]} {[%emt 00:00:13]} 49. Kd4 {[%clk
00:27:22]} {[%emt 00:00:15]} h4 {[%clk 00:03:14]} {[%emt 00:00:38]} 50. Kc5
{[%clk 00:26:48]} {[%emt 00:01:08]} Kg5 {[%clk 00:00:53]} {[%emt 00:02:59]} 51.
b7 {[%clk 00:25:33]} {[%emt 00:01:34]} h3 {[%clk 00:00:46]} {[%emt 00:00:37]}
52. Rg8 {[%clk 00:25:49]} {[%emt 00:00:16]} Kf4 {[%clk 00:01:10]} {[%emt
00:00:13]} 53. b8=Q+ {[%clk 00:26:05]} {[%emt 00:00:07]} Rxb8 {[%clk 00:01:33]}
{[%emt 00:00:05]} 54. Rxb8 {[%clk 00:26:31]} {[%emt 00:00:13]} h2 {[%clk
00:01:29]} {[%emt 00:00:25]} 55. Rh8 {[%clk 00:26:48]} {[%emt 00:00:22]} Kg3
{[%clk 00:01:54]} 56. Kd4 {[%clk 00:27:13]} {[%emt 00:00:04]} Kg2 {[%clk
00:02:16]} {[%emt 00:00:05]} 57. Ke3 {[%clk 00:27:33]} {[%emt 00:00:10]} h1=Q
{[%clk 00:02:31]} {[%emt 00:00:15]} 58. Rxh1 {[%clk 00:27:59]} {[%emt
00:00:07]} Kxh1 {[%emt 00:00:59]} 1/2-1/2